bitfinex/quotes_BTCUSD_20250902
["timestamp","ask_amount","ask_price","bid_price","bid_amount"]
[1756819058533,0.35967687,109430.0,109420.0,0.18278194]
[1756819058774,0.38316575,109430.0,109420.0,0.18788194]
[1756819059322,0.37676283,109430.0,109420.0,0.18788194]
[1756819059566,0.35967713,109430.0,109420.0,0.18788194]
[1756819060040,0.35967713,109430.0,109420.0,0.27979793]
[1756819060272,0.01967713,109430.0,109420.0,0.27979793]
[1756819060513,0.01967713,109430.0,109420.0,0.30073675]
[1756819060739,0.01967713,109430.0,109420.0,0.56423675]
[1756819061216,0.96241908,109440.0,109430.0,0.18276523]
[1756819061459,1.01517878,109440.0,109430.0,0.15808]
[1756819061699,1.01830878,109440.0,109430.0,0.15808]
[1756819061939,0.18276523,109430.0,109420.0,0.44628194]
[1756819062158,0.20557853,109430.0,109420.0,0.60436194]
[1756819062375,0.64692879,109430.0,109420.0,0.60436194]
[1756819062608,0.0196833,109430.0,109420.0,0.60631194]
[1756819062808,0.99006706,109440.0,109430.0,0.18276523]
[1756819063031,1.01831637,109440.0,109430.0,0.18276523]
[1756819063445,1.42245173,109440.0,109430.0,0.18276523]
[1756819063661,1.42245173,109440.0,109420.0,0.60336194]
[1756819063863,0.42166781,109430.0,109420.0,0.60336194]
[1756819064232,0.44135715,109430.0,109420.0,0.60336194]
[1756819064434,0.01968934,109430.0,109420.0,0.60531194]
[1756819064636,0.62627238,109430.0,109420.0,0.44528194]
[1756819064844,0.96940238,109430.0,109420.0,0.42058]
[1756819065901,1.39107019,109430.0,109420.0,0.42058]
[1756819066113,1.39747923,109430.0,109420.0,0.2625]
[1756819066337,1.44948024,109430.0,109420.0,0.42058]
[1756819066799,1.44948024,109430.0,109420.0,0.15808]
[1756819067018,1.47225387,109430.0,109420.0,0.15908]
[1756819067439,1.44773589,109430.0,109420.0,0.15908]
[1756819068204,1.42496226,109430.0,109420.0,0.15908]
[1756819069703,0.58162664,109430.0,109420.0,0.15908]
[1756819069919,1.42495721,109430.0,109420.0,0.15908]
[1756819071459,1.41855322,109430.0,109420.0,0.15908]
[1756819072766,1.41855322,109430.0,109420.0,0.15916]
[1756819072956,1.42495593,109430.0,109420.0,0.15916]
[1756819073326,1.41855322,109430.0,109420.0,0.15916]
[1756819073533,1.51046921,109430.0,109420.0,0.15916]
[1756819075218,1.41855322,109430.0,109420.0,0.15916]
[1756819076735,0.04717237,109430.0,109420.0,0.76853975]
[1756819076967,0.00046874,109440.0,109430.0,0.18276523]
[1756819077202,0.00046874,109440.0,109430.0,0.29562004]
[1756819077434,0.00046874,109440.0,109430.0,0.30055004]
[1756819077893,0.42213655,109440.0,109430.0,0.30055004]
[1756819078122,1.02870289,109440.0,109430.0,0.43471122]
[1756819078399,1.02870289,109440.0,109430.0,0.43769122]
[1756819078400,0.60488508,109440.0,109430.0,0.43769122]
[1756819078842,0.42213655,109440.0,109430.0,0.43769122]
[1756819079619,0.60488508,109440.0,109430.0,0.43769122]
[1756819080225,0.18321727,109440.0,109430.0,0.43769122]
[1756819080433,0.42213655,109440.0,109430.0,0.43769122]
[1756819080644,0.60488508,109440.0,109430.0,0.27961122]
[1756819080864,0.60488508,109440.0,109430.0,0.34577523]
[1756819081072,0.42213655,109440.0,109430.0,0.34577523]
[1756819081283,0.42213655,109440.0,109430.0,0.34279523]
[1756819081716,0.60488508,109440.0,109430.0,0.34279523]
[1756819082168,0.00046874,109440.0,109430.0,0.34577523]
[1756819082388,0.00046874,109440.0,109430.0,0.72113004]
[1756819082833,0.00046874,109440.0,109430.0,1.14279785]
[1756819083051,0.00046874,109440.0,109430.0,0.56305004]
[1756819083261,0.00046874,109440.0,109430.0,0.72113004]
[1756819083485,0.42213655,109440.0,109430.0,0.69721122]
[1756819083726,0.18274853,109440.0,109430.0,0.69721122]
[1756819084023,0.42166781,109440.0,109430.0,0.69721122]
[1756819084265,0.42166781,109440.0,109430.0,0.70019122]
[1756819084518,0.60656634,109440.0,109430.0,0.44721523]
[1756819084733,0.60656634,109440.0,109430.0,0.60529523]
[1756819084978,0.01785721,109450.0,109440.0,0.18274853]
[1756819085205,0.42166781,109450.0,109440.0,0.18478425]
[1756819085426,0.60439965,109450.0,109440.0,0.18478425]
[1756819085636,0.60967965,109450.0,109440.0,8.572e-05]
[1756819086111,1.12326345,109450.0,109440.0,0.15816572]
[1756819086321,1.15074077,109450.0,109440.0,0.15816572]
[1756819086528,0.65501773,109450.0,109440.0,0.15816572]
[1756819086748,0.46915589,109450.0,109440.0,0.34286425]
[1756819086981,0.76166781,109460.0,109450.0,0.18273184]
[1756819087208,0.76166781,109460.0,109450.0,0.00195]
[1756819087209,0.97185748,109460.0,109450.0,0.00195]
[1756819087425,0.97400748,109460.0,109450.0,0.00195]
[1756819088123,0.97713748,109460.0,109440.0,0.43581024]
[1756819088764,0.97713748,109460.0,109450.0,0.00195]
[1756819088971,0.99475318,109460.0,109450.0,0.00195]
[1756819089182,0.18273184,109450.0,109440.0,0.45376906]
[1756819089393,0.18273184,109450.0,109440.0,0.34095425]
[1756819089655,0.18480184,109450.0,109440.0,0.34292425]
[1756819091564,0.18480184,109450.0,109440.0,0.16017572]
[1756819091801,0.60952965,109450.0,109440.0,0.15816572]
[1756819091994,0.60952965,109450.0,109440.0,0.34288425]
[1756819092206,0.60646965,109450.0,109440.0,0.34288425]
[1756819092651,0.60646965,109450.0,109440.0,0.16013572]
[1756819093060,0.60646965,109450.0,109440.0,0.34288425]
[1756819094152,0.60646965,109450.0,109440.0,0.16013572]
[1756819094592,0.60952965,109450.0,109440.0,0.15816572]
[1756819095008,0.60952965,109450.0,109440.0,8.572e-05]
[1756819095403,0.60952965,109450.0,109440.0,0.15816572]
[1756819096260,1.03119746,109450.0,109440.0,0.15816572]
[1756819096910,1.37119746,109450.0,109440.0,0.15816572]
[1756819098192,1.48276039,109450.0,109440.0,8.572e-05]
[1756819098415,1.51023786,109450.0,109440.0,8.572e-05]
[1756819098629,1.60215385,109450.0,109440.0,8.572e-05]
[1756819099055,1.60854915,109450.0,109440.0,8.572e-05]
[1756819099917,1.6228518,109450.0,109440.0,8.572e-05]
[1756819100126,1.7809318,109450.0,109440.0,8.572e-05]
[1756819100545,1.79905448,109450.0,109440.0,8.572e-05]
[1756819100748,1.80545071,109450.0,109440.0,8.572e-05]
[1756819100989,1.84682874,109450.0,109440.0,8.572e-05]
[1756819101376,1.00349312,109450.0,109440.0,8.572e-05]
[1756819101587,1.84682917,109450.0,109440.0,8.572e-05]
[1756819102035,1.83252652,109450.0,109440.0,8.572e-05]
[1756819102251,0.79826246,109450.0,109440.0,8.572e-05]
[1756819102461,1.79967808,109450.0,109440.0,8.572e-05]
[1756819102665,1.60215385,109450.0,109440.0,8.572e-05]
[1756819103105,1.60855134,109450.0,109440.0,8.572e-05]
[1756819104467,1.63414852,109450.0,109440.0,8.572e-05]
[1756819104674,1.8167465,109450.0,109440.0,8.572e-05]
[1756819105132,1.83104939,109450.0,109440.0,8.572e-05]
[1756819105353,1.84004939,109450.0,109440.0,8.572e-05]
[1756819106760,0.83863377,109450.0,109440.0,8.572e-05]
[1756819107005,0.83863377,109450.0,109440.0,0.00205572]
[1756819107006,1.40131679,109450.0,109440.0,0.00205572]
[1756819107223,1.78993423,109450.0,109440.0,8.572e-05]
[1756819107464,1.82298776,109450.0,109440.0,8.572e-05]
[1756819108311,1.82307401,109450.0,109440.0,8.572e-05]
[1756819108529,2.24474182,109450.0,109440.0,8.572e-05]
[1756819108746,1.83114424,109450.0,109440.0,8.572e-05]
[1756819108950,2.25281205,109450.0,109440.0,8.572e-05]
[1756819109138,1.84014424,109450.0,109440.0,8.572e-05]
[1756819109682,1.84035958,109450.0,109440.0,8.572e-05]
[1756819109919,1.83135958,109450.0,109440.0,8.572e-05]
[1756819111284,1.82495748,109450.0,109440.0,8.572e-05]
[1756819111555,1.83135684,109450.0,109440.0,8.572e-05]
[1756819111872,1.83135661,109450.0,109440.0,8.572e-05]
[1756819113791,1.84035661,109450.0,109440.0,8.572e-05]
[1756819114004,1.87306274,109450.0,109440.0,8.572e-05]
[1756819114238,1.83994535,109450.0,109440.0,8.572e-05]
[1756819114464,1.82564246,109450.0,109440.0,8.572e-05]
[1756819114993,1.86556184,109450.0,109440.0,8.572e-05]
[1756819115755,2.20927571,109450.0,109440.0,1e-08]
[1756819117241,2.23301249,109450.0,109440.0,1e-08]
[1756819117652,2.24731718,109450.0,109440.0,1e-08]
[1756819118385,2.25631718,109450.0,109440.0,1e-08]
[1756819118602,2.2593134,109450.0,109440.0,1e-08]
[1756819118827,2.2175804,109450.0,109440.0,1e-08]
[1756819119244,7.72594234,109450.0,109440.0,1e-08]
[1756819119445,7.72594234,109450.0,109400.0,4e-05]
[1756819119446,0.52279864,109410.0,109400.0,0.00309]
[1756819119648,0.54246583,109410.0,109400.0,0.00355874]
[1756819119871,0.96424131,109410.0,109400.0,0.00563874]
[1756819120166,0.99172989,109410.0,109400.0,0.00563874]
[1756819121135,0.56995441,109410.0,109400.0,0.00563874]
[1756819121342,0.9720627,109410.0,109400.0,0.00563874]
[1756819121558,0.55028722,109410.0,109400.0,0.00563874]
[1756819121769,0.9720627,109410.0,109400.0,0.19045409]
[1756819121975,0.9720627,109410.0,109400.0,0.00763874]
[1756819122192,0.55028722,109410.0,109400.0,0.00763874]
[1756819122434,0.21028722,109410.0,109400.0,0.19045409]
[1756819122894,0.64770366,109410.0,109400.0,0.00763874]
[1756819123105,0.64770366,109410.0,109400.0,0.34853409]
[1756819123313,0.30897824,109410.0,109400.0,0.34853409]
[1756819123526,0.64770366,109410.0,109400.0,0.34853409]
[1756819123739,0.22592818,109410.0,109400.0,0.34853409]
[1756819124168,0.64770366,109410.0,109400.0,0.34853409]
[1756819124540,0.22592818,109410.0,109400.0,0.16571874]
[1756819124742,0.22592818,109410.0,109400.0,0.34853409]
[1756819124951,0.22592818,109410.0,109400.0,0.16571874]
[1756819125190,0.22592818,109410.0,109400.0,0.34853409]
[1756819125368,0.22592818,109410.0,109400.0,0.16571874]
[1756819126317,0.22592818,109410.0,109400.0,0.34853409]
[1756819126749,0.02748858,109410.0,109400.0,0.36947291]
[1756819126962,0.60457242,109420.0,109400.0,0.36947291]
[1756819127161,0.62422624,109420.0,109400.0,0.36642291]
[1756819127364,0.96422624,109420.0,109410.0,0.00305]
[1756819127570,0.96422624,109420.0,109410.0,0.00513]
[1756819128026,1.00771776,109420.0,109410.0,0.00513]
[1756819129420,1.00761676,109420.0,109410.0,0.00513]
[1756819130435,1.00761676,109420.0,109410.0,0.18792864]
[1756819130633,1.00761676,109420.0,109410.0,0.00513]
[1756819131406,1.00761676,109420.0,109410.0,0.16325]
[1756819131849,1.00761676,109420.0,109410.0,0.1602]
[1756819132898,1.00761676,109420.0,109410.0,0.34604864]
[1756819135562,1.00974676,109420.0,109410.0,0.00208]
[1756819135770,1.00974676,109420.0,109410.0,0.16016]
[1756819136770,1.00974676,109420.0,109410.0,0.00208]
[1756819136980,1.01274676,109420.0,109410.0,0.16016]
[1756819137399,1.01275931,109420.0,109410.0,0.16016]
[1756819140806,0.58798383,109420.0,109410.0,0.16016]
[1756819141047,1.01275931,109420.0,109410.0,0.16016]
[1756819141246,1.01275931,109420.0,109410.0,0.15808]
[1756819142163,0.18279864,109410.0,109400.0,0.2072976]
[1756819142345,0.18279864,109410.0,109400.0,0.3674576]
[1756819142808,0.99096294,109420.0,109400.0,0.3674576]
[1756819143013,1.01064994,109420.0,109400.0,0.3674576]
[1756819143263,0.18279864,109410.0,109400.0,0.3674576]
[1756819143685,0.56618746,109420.0,109400.0,0.3694576]
[1756819143910,1.00765399,109420.0,109400.0,0.3694576]
[1756819144155,0.04717617,109420.0,109410.0,0.20678746]
[1756819144378,0.04717617,109420.0,109410.0,0.20886746]
[1756819144616,0.22995811,109420.0,109410.0,0.20886746]
[1756819144834,0.04717617,109420.0,109410.0,0.20886746]
[1756819145249,0.02748512,109420.0,109410.0,0.20886746]
[1756819145914,0.19912637,109430.0,109420.0,0.18278194]
[1756819146130,0.67020555,109430.0,109420.0,0.34294194]
[1756819146359,0.67320555,109430.0,109420.0,0.00208]
[1756819146581,0.67320555,109430.0,109420.0,0.15808]
[1756819146811,0.67320555,109430.0,109420.0,0.34086194]
[1756819147077,0.67320555,109430.0,109420.0,0.34294194]
[1756819147292,0.18278194,109420.0,109410.0,0.20373746]
[1756819147525,0.18278194,109420.0,109410.0,0.36177746]
[1756819147748,0.65138312,109430.0,109410.0,0.36690746]
[1756819147991,0.18491194,109420.0,109410.0,0.02301882]
[1756819148205,0.60968742,109420.0,109410.0,0.17897882]
[1756819148414,0.60968742,109420.0,109410.0,0.36177746]
[1756819148624,0.22960764,109430.0,109410.0,0.36385746]
[1756819148854,0.67106644,109430.0,109410.0,0.36385746]
[1756819149070,0.25029096,109430.0,109410.0,0.36385746]
[1756819149274,0.67206644,109430.0,109410.0,0.36385746]
[1756819149483,0.67306644,109430.0,109410.0,0.36385746]
[1756819149699,0.67306644,109430.0,109410.0,0.36678746]
[1756819149915,0.67306644,109430.0,109420.0,0.18278194]
[1756819149916,0.06452573,109430.0,109420.0,0.18278194]
[1756819150124,0.48842121,109430.0,109420.0,0.18480194]
[1756819150370,0.65544312,109430.0,109420.0,0.18480194]
[1756819150591,0.23072764,109430.0,109420.0,0.18480194]
[1756819151077,0.23266764,109430.0,109420.0,0.18480194]
[1756819151295,0.65444312,109430.0,109420.0,0.34082194]
[1756819151529,0.65544312,109430.0,109410.0,0.20373746]
[1756819151818,0.65544312,109430.0,109420.0,0.15804]
[1756819152029,0.23366764,109430.0,109420.0,0.15804]
[1756819152261,0.65544312,109430.0,109420.0,0.34082194]
[1756819152467,0.65344312,109430.0,109420.0,0.34082194]
[1756819152935,0.23366764,109430.0,109410.0,0.20373746]
[1756819153172,0.18572194,109420.0,109410.0,0.20373746]
[1756819153389,0.18784194,109420.0,109410.0,0.20373746]
[1756819153803,0.18784194,109420.0,109410.0,0.20575746]
[1756819154007,0.18490194,109420.0,109410.0,0.36379746]
[1756819154867,0.02948127,109430.0,109420.0,0.20372076]
[1756819155083,0.31522584,109470.0,109420.0,0.20372076]
[1756819155084,0.05731164,109480.0,109450.0,0.20367066]
[1756819155297,0.13143629,109490.0,109480.0,0.18268176]
[1756819155298,0.10687279,109490.0,109480.0,0.18268176]
[1756819155504,0.07940327,109490.0,109480.0,0.36661058]
[1756819155717,0.07940327,109490.0,109480.0,0.83941273]
[1756819156140,0.07940327,109490.0,109480.0,0.25959725]
[1756819156348,0.07948896,109490.0,109480.0,0.41763725]
[1756819156557,0.07948896,109490.0,109480.0,0.30048657]
[1756819156771,0.08160896,109490.0,109480.0,0.36368058]
[1756819157277,0.08160896,109490.0,109480.0,0.36668058]
[1756819157515,0.08160896,109490.0,109480.0,0.02595882]
[1756819157516,0.26427404,109490.0,109480.0,0.02595882]
[1756819157728,0.26427404,109490.0,109480.0,0.02393882]
[1756819157729,0.9501032,109490.0,109480.0,0.02393882]
[1756819157955,0.9501032,109490.0,109480.0,0.18193882]
[1756819158172,0.26721404,109490.0,109480.0,0.18193882]
[1756819158662,0.26721404,109490.0,109480.0,0.161]
[1756819158899,0.18268176,109480.0,109470.0,0.02093882]
[1756819159107,0.18268176,109480.0,109470.0,0.17893882]
[1756819159308,0.18480176,109480.0,109470.0,0.17893882]
[1756819159530,0.18774176,109480.0,109470.0,0.02093882]
[1756819159734,0.87063092,109480.0,109470.0,0.02093882]
[1756819159943,0.18774176,109480.0,109470.0,0.17893882]
[1756819160568,0.18774176,109480.0,109470.0,0.18293882]
[1756819160807,0.18774176,109480.0,109470.0,0.18093882]
[1756819161415,0.18774176,109480.0,109470.0,0.17893882]
[1756819161836,0.18774176,109480.0,109470.0,0.17993882]
[1756819162908,0.96254691,109480.0,109470.0,0.161]
[1756819163317,0.99001587,109480.0,109470.0,0.161]
[1756819163526,0.30712671,109480.0,109470.0,0.161]
[1756819163953,0.21227072,109480.0,109470.0,0.16302]
[1756819164162,0.21521072,109480.0,109470.0,0.161]
[1756819165081,0.21521072,109480.0,109470.0,0.16302]
[1756819166302,0.21015072,109480.0,109470.0,0.371871]
[1756819166595,0.21015072,109480.0,109470.0,0.36958727]
[1756819166775,0.02746896,109480.0,109470.0,0.46150326]
[1756819167014,0.26215404,109490.0,109480.0,0.02093882]
[1756819167238,0.26721404,109490.0,109480.0,0.17889882]
[1756819167705,0.26215404,109490.0,109480.0,0.18091882]
[1756819169409,0.26215404,109490.0,109480.0,0.18191882]
[1756819169629,0.26215404,109490.0,109480.0,0.36753058]
[1756819170709,0.26215404,109490.0,109480.0,0.5003524]
[1756819171308,0.07948896,109490.0,109480.0,0.5003524]
[1756819171517,0.26215404,109490.0,109480.0,0.5003524]
[1756819172487,0.26215404,109490.0,109480.0,0.31767064]
[1756819172728,0.26215404,109490.0,109480.0,0.31474064]
[1756819172936,0.26215404,109490.0,109480.0,0.5003524]
[1756819173434,0.26215404,109490.0,109480.0,0.31767064]
[1756819173664,0.26427404,109490.0,109480.0,0.15678064]
[1756819173884,0.26721404,109490.0,109480.0,0.31272064]
[1756819174158,0.70586292,109490.0,109480.0,0.02193882]
[1756819174379,0.70586292,109490.0,109480.0,0.17985882]
[1756819174611,0.26721404,109490.0,109480.0,0.17985882]
[1756819175040,0.26215404,109490.0,109480.0,0.18187882]
[1756819175252,0.26215404,109490.0,109480.0,0.36749058]
[1756819175460,0.26215404,109490.0,109480.0,0.36456058]
[1756819175667,0.26215404,109490.0,109480.0,0.18187882]
[1756819175874,0.26721404,109490.0,109480.0,0.18187882]
[1756819176668,0.26721404,109490.0,109480.0,0.36456058]
[1756819176669,0.26427404,109490.0,109480.0,0.36456058]
[1756819177692,0.26721404,109490.0,109480.0,0.17985882]
[1756819177886,0.26427404,109490.0,109480.0,0.36456058]
[1756819178651,0.26721404,109490.0,109480.0,0.17985882]
[1756819179073,0.70586292,109490.0,109480.0,0.17985882]
[1756819179491,1.54185367,109490.0,109480.0,0.15892]
[1756819179699,1.14008919,109490.0,109480.0,0.15892]
[1756819180332,1.0481732,109490.0,109480.0,0.15892]
[1756819180540,1.47591775,109490.0,109480.0,0.15892]
[1756819180743,1.05455593,109490.0,109480.0,0.34160176]
[1756819180962,0.62813411,109490.0,109480.0,0.36254058]
[1756819181180,0.62374138,109490.0,109480.0,0.36467058]
[1756819181447,1.14659703,109490.0,109480.0,0.15892]
[1756819181660,1.05468104,109490.0,109480.0,0.34160176]
[1756819181867,1.0482932,109490.0,109480.0,0.34160176]
[1756819182073,1.05468116,109490.0,109480.0,0.34160176]
[1756819182279,1.0431132,109490.0,109480.0,0.34373176]
[1756819182484,1.04950596,109490.0,109480.0,0.34373176]
[1756819183126,0.632007,109490.0,109480.0,0.34373176]
[1756819183334,0.635197,109490.0,109480.0,0.15892]
[1756819184184,0.63520397,109490.0,109480.0,0.15892]
[1756819185017,0.66445989,109490.0,109480.0,0.15892]
[1756819185271,0.68905363,109490.0,109480.0,0.001]
[1756819185473,0.68905363,109490.0,109480.0,0.15892]
[1756819185905,0.68918253,109490.0,109480.0,0.15892]
[1756819186847,0.26782071,109490.0,109480.0,0.15892]
[1756819187066,0.65992661,109490.0,109480.0,0.15892]
[1756819188155,0.65992661,109490.0,109480.0,0.001]
[1756819188375,0.65992661,109490.0,109480.0,0.15892]
[1756819188795,0.68739351,109490.0,109480.0,0.15892]
[1756819190369,0.66486596,109490.0,109480.0,0.15892]
[1756819190585,0.24350414,109490.0,109480.0,0.15892]
[1756819190802,0.66486596,109490.0,109480.0,0.15892]
[1756819191225,0.64024974,109490.0,109480.0,0.15892]
[1756819193203,0.66486596,109490.0,109480.0,0.15892]
[1756819193509,0.74513305,109490.0,109480.0,0.15892]
[1756819193694,0.74827305,109490.0,109480.0,0.15892]
[1756819194125,0.84018904,109490.0,109480.0,0.001]
[1756819195307,1.26155086,109490.0,109480.0,0.001]
[1756819197679,1.41943086,109490.0,109480.0,0.001]
[1756819199373,0.57356722,109490.0,109480.0,0.001]
[1756819199789,0.99492904,109490.0,109480.0,0.001]
[1756819200204,1.0030415,109490.0,109480.0,0.001]
[1756819200404,0.27424812,109490.0,109480.0,0.00613]
[1756819200617,0.69560994,109490.0,109480.0,0.00613]
[1756819201434,0.27424812,109490.0,109480.0,0.18881176]
[1756819201762,0.66288126,109490.0,109480.0,0.00613]
[1756819202140,0.66929366,109490.0,109480.0,0.18881176]
[1756819202528,0.66929366,109490.0,109480.0,0.00613]
[1756819202748,0.67127366,109490.0,109480.0,0.00313]
[1756819202961,0.67127366,109490.0,109480.0,0.16101]
[1756819203173,0.24793184,109490.0,109480.0,0.16401]
[1756819203375,0.66929366,109490.0,109480.0,0.16401]
[1756819203995,0.67127366,109490.0,109480.0,0.16401]
[1756819204453,0.67127556,109490.0,109480.0,0.16401]
[1756819204670,0.6883807,109490.0,109480.0,0.001]
[1756819204883,1.23753719,109490.0,109480.0,0.001]
[1756819205088,1.48733318,109490.0,109480.0,0.001]
[1756819205311,1.46271166,109490.0,109480.0,0.001]
[1756819206032,1.85180468,109490.0,109480.0,0.001]
[1756819206929,1.819076,109490.0,109480.0,0.001]
[1756819207372,1.85191449,109490.0,109480.0,0.001]
[1756819208003,2.24043782,109490.0,109480.0,0.001]
[1756819208216,2.27327477,109490.0,109480.0,0.001]
[1756819208446,2.24043782,109490.0,109480.0,0.001]
[1756819209141,2.24043782,109490.0,109420.0,0.00302]
[1756819209142,0.18276523,109430.0,109420.0,0.00302]
[1756819209372,0.60412705,109430.0,109420.0,0.00302]
[1756819209610,0.62380375,109430.0,109420.0,0.00504]
[1756819209830,0.62380375,109430.0,109420.0,0.02597882]
[1756819210050,0.63872099,109430.0,109420.0,0.00504]
[1756819210266,0.61904429,109430.0,109420.0,0.00504]
[1756819210470,0.04239713,109430.0,109420.0,0.72732334]
[1756819210694,0.04239713,109430.0,109420.0,0.72550731]
[1756819210695,0.01491724,109430.0,109420.0,0.72550731]
[1756819210916,0.63158766,109440.0,109430.0,0.20370405]
[1756819211125,0.44883844,109440.0,109430.0,0.36662405]
[1756819211335,0.02747662,109440.0,109430.0,0.36662405]
[1756819211539,0.02747662,109440.0,109430.0,0.45854004]
[1756819212198,0.60409486,109450.0,109440.0,0.02093882]
[1756819212420,0.60409486,109450.0,109440.0,0.02597882]
[1756819212617,0.63157021,109450.0,109440.0,0.02597882]
[1756819213474,0.6493189,109450.0,109440.0,0.02597882]
[1756819214330,0.66372469,109450.0,109440.0,0.02597882]
[1756819215760,0.66372469,109450.0,109440.0,0.20872735]
[1756819215965,0.66372469,109450.0,109440.0,0.02597882]
[1756819216170,0.66372469,109450.0,109440.0,0.20872735]
[1756819216370,0.63624934,109450.0,109440.0,0.20872735]
[1756819216577,0.19713883,109450.0,109440.0,0.20872735]
[1756819217035,0.01440579,109450.0,109440.0,0.02597882]
[1756819217254,0.19188428,109460.0,109450.0,0.02093882]
[1756819217463,0.18274853,109460.0,109450.0,0.36357066]
[1756819217671,0.18274853,109460.0,109450.0,0.18385882]
[1756819217881,0.18274853,109460.0,109450.0,0.36659066]
[1756819218448,0.18374853,109460.0,109450.0,0.36659066]
[1756819218850,0.18274853,109460.0,109450.0,0.36859066]
[1756819219292,0.18274853,109460.0,109450.0,0.36959066]
[1756819219855,0.72782076,109470.0,109450.0,0.36959066]
[1756819220056,0.18271514,109460.0,109450.0,0.36657066]
[1756819220649,0.72782076,109470.0,109450.0,0.36959066]
[1756819220650,0.28871025,109470.0,109450.0,0.36959066]
[1756819220862,0.72782076,109470.0,109460.0,0.00302]
[1756819221133,0.72782076,109470.0,109460.0,0.00504]
[1756819221580,0.01460283,109470.0,109460.0,0.02597882]
[1756819221824,0.18269845,109470.0,109460.0,0.02597882]
[1756819222044,0.18269845,109470.0,109460.0,0.20877965]
[1756819222931,0.1974038,109470.0,109460.0,0.20877965]
[1756819223150,0.18269845,109470.0,109460.0,0.20877965]
[1756819224376,0.18275936,109480.0,109460.0,0.21177965]
[1756819224597,0.63671526,109480.0,109470.0,0.1609]
[1756819224829,0.63874526,109480.0,109470.0,0.15788]
[1756819225052,0.63874526,109480.0,109470.0,0.16292]
[1756819225274,0.63671526,109480.0,109470.0,0.16292]
[1756819225491,0.63874526,109480.0,109470.0,0.16292]
[1756819226971,0.18269845,109470.0,109460.0,0.02404451]
[1756819227226,0.18269845,109470.0,109460.0,0.18188451]
[1756819227435,0.18269845,109470.0,109460.0,0.18390451]
[1756819227650,0.62383896,109470.0,109460.0,0.17886451]
[1756819228059,0.62383896,109470.0,109460.0,0.02202451]
[1756819228341,0.62383896,109470.0,109460.0,0.17986451]
[1756819229234,0.62373896,109470.0,109460.0,0.18186451]
[1756819229459,0.62373896,109470.0,109460.0,0.18388451]
[1756819229460,0.18462845,109470.0,109460.0,0.18388451]
[1756819229698,0.62373896,109470.0,109460.0,0.02604451]
[1756819229886,0.62373896,109470.0,109460.0,0.18186451]
[1756819231662,0.86797695,109470.0,109460.0,0.18186451]
[1756819232102,0.86797695,109470.0,109460.0,0.18388451]
[1756819233245,0.86797695,109470.0,109460.0,0.18690451]
[1756819233497,0.87107695,109470.0,109460.0,0.16092569]
[1756819233726,0.86797695,109470.0,109460.0,0.16092569]
[1756819234400,0.89075003,109470.0,109460.0,0.16092569]
[1756819235129,0.88765003,109470.0,109460.0,0.16092569]
[1756819235350,0.89075003,109470.0,109460.0,0.16092569]
[1756819235576,1.05038369,109470.0,109460.0,0.16092569]
[1756819235795,1.04728369,109470.0,109460.0,0.16092569]
[1756819236742,0.62579261,109470.0,109460.0,0.16294569]
[1756819236968,0.62376261,109470.0,109460.0,0.16596569]
[1756819237226,0.42149108,109470.0,109460.0,0.36961965]
[1756819237477,0.60418953,109470.0,109460.0,0.36961965]
[1756819238323,0.60418953,109470.0,109460.0,0.18690451]
[1756819238557,0.60418953,109470.0,109460.0,0.36961965]
[1756819240240,0.18269845,109470.0,109460.0,0.36961965]
[1756819240650,0.19754008,109480.0,109460.0,0.36961965]
[1756819240868,0.63872077,109480.0,109470.0,0.18563845]
[1756819241102,0.61903116,109480.0,109470.0,0.18764845]
[1756819241325,0.63872496,109480.0,109470.0,0.18764845]
[1756819241544,0.01484539,109480.0,109470.0,0.20858727]
[1756819241979,0.61333419,109490.0,109470.0,0.20858727]
[1756819242194,0.01327058,109480.0,109470.0,0.20858727]
[1756819242470,0.18268176,109480.0,109470.0,0.36638727]
[1756819242692,0.19184311,109490.0,109470.0,0.36638727]
[1756819242912,0.63303069,109490.0,109480.0,0.00294]
[1756819243133,0.63303069,109490.0,109480.0,0.00495]
[1756819243134,0.63499069,109490.0,109480.0,0.00495]
[1756819244911,0.63699069,109490.0,109480.0,0.00495]
[1756819245120,0.63699069,109490.0,109480.0,0.00201]
[1756819245328,0.63599069,109490.0,109480.0,0.00201]
[1756819245538,0.21349961,109490.0,109480.0,0.00201]
[1756819245742,0.6493142,109490.0,109480.0,0.00201]
[1756819245942,0.6493142,109490.0,109480.0,0.00495]
[1756819246162,0.6503142,109490.0,109480.0,0.00495]
[1756819246611,0.6483542,109490.0,109480.0,0.00495]
[1756819246836,0.6503142,109490.0,109480.0,0.00495]
[1756819247045,0.6503142,109490.0,109480.0,0.00201]
[1756819247503,0.6503142,109490.0,109480.0,0.1578]
[1756819247913,0.6503142,109490.0,109480.0,0.16275]
[1756819248056,0.6503142,109490.0,109480.0,0.1578]
[1756819248960,0.6503142,109490.0,109480.0,0.40509183]
[1756819248961,0.002,109490.0,109480.0,0.40509183]
[1756819249165,0.002,109490.0,109480.0,0.40280831]
[1756819249377,0.002,109490.0,109480.0,0.4947243]
[1756819249799,0.001,109490.0,109480.0,0.4947243]
[1756819250330,0.002,109490.0,109480.0,0.3369243]
[1756819250536,0.002,109490.0,109480.0,0.4947243]
[1756819251270,0.001,109490.0,109480.0,0.4947243]
[1756819251466,0.002,109490.0,109480.0,0.4947243]
[1756819252082,1.0,109500.0,109490.0,0.18266508]
[1756819252287,1.0,109500.0,109490.0,0.29412001]
[1756819252701,1.0,109500.0,109490.0,0.73654991]
[1756819253326,1.0,109500.0,109490.0,0.74978407]
[1756819253541,1.0,109500.0,109490.0,0.75178407]
[1756819254392,1.0,109500.0,109490.0,0.75278407]
[1756819254599,1.0,109500.0,109490.0,0.91054407]
[1756819254802,1.0,109500.0,109490.0,0.90954407]
[1756819255226,1.0,109500.0,109490.0,0.90754407]
[1756819255434,1.0,109500.0,109490.0,0.75378407]
[1756819255650,1.0,109500.0,109490.0,0.91454407]
[1756819256086,1.0,109500.0,109490.0,0.49305299]
[1756819256311,1.0,109500.0,109490.0,0.91454407]
[1756819257133,1.0,109500.0,109490.0,1.25454407]
[1756819257337,0.9994,109500.0,109490.0,1.25454407]
[1756819257994,0.9994,109500.0,109490.0,1.09678407]
[1756819258198,0.9994,109500.0,109490.0,1.25450407]
[1756819258412,0.9994,109500.0,109490.0,1.29552137]
[1756819260541,0.9994,109500.0,109490.0,1.13780137]
[1756819260785,0.9994,109500.0,109490.0,1.29552137]
[1756819262276,0.9994,109500.0,109490.0,1.29548137]
[1756819263185,0.9994,109500.0,109490.0,0.71631029]
[1756819263402,0.9994,109500.0,109490.0,0.87399029]
[1756819263631,0.9994,109500.0,109490.0,1.29548137]
[1756819264921,1.00136,109500.0,109490.0,0.85781613]
[1756819265395,1.00136,109500.0,109490.0,0.36013613]
[1756819265623,1.60865948,109500.0,109490.0,0.09891599]
[1756819265842,1.60865948,109500.0,109490.0,0.34734508]